[Event "Live Chess"]
[Site "Chess.com"]
[Date "2023.05.21"]
[Round "-"]
[White "Berdgross"]
[Black "Missedidea"]
[Result "0-1"]
[WhiteElo "682"]
[BlackElo "1795"]
[TimeControl "300"]
[EndTime "5:20:42 PDT"]
[Termination "Missedidea won by resignation"]

1. e4 {[%clk 0:04:55.7]} 1... c5 {[%clk 0:04:58.8]} 2. d4 {[%clk 0:04:54.5]}
2... cxd4 {[%clk 0:04:57.2]} 3. Qxd4 {[%clk 0:04:53.8]} 3... Nc6 {[%clk
0:04:55.4]} 4. Qd1 {[%clk 0:04:52.1]} 4... Nf6 {[%clk 0:04:53.5]} 5. Nc3 {[%clk
0:04:51.6]} 5... g6 {[%clk 0:04:51.8]} 6. Bd3 {[%clk 0:04:49.3]} 6... Bg7 {[%clk
0:04:49.5]} 7. Nf3 {[%clk 0:04:48.9]} 7... O-O {[%clk 0:04:47]} 8. a3 {[%clk
0:04:48.8]} 8... d6 {[%clk 0:04:38]} 9. O-O {[%clk 0:04:48.7]} 9... a6 {[%clk
0:04:35.2]} 10. Nd5 {[%clk 0:04:44.5]} 10... e6 {[%clk 0:04:26.2]} 11. Nxf6+
{[%clk 0:04:41.4]} 11... Bxf6 {[%clk 0:04:19.7]} 12. Qd2 {[%clk 0:04:28.8]}
12... Re8 {[%clk 0:04:14.7]} 13. Re1 {[%clk 0:04:22.2]} 13... Qc7 {[%clk
0:04:12.8]} 14. c3 {[%clk 0:04:19]} 14... Na5 {[%clk 0:04:08.5]} 15. b4 {[%clk
0:04:14.1]} 15... Nb3 {[%clk 0:04:06.3]} 16. Qb2 {[%clk 0:04:05.7]} 16... Nxa1
{[%clk 0:04:04.1]} 17. Qxa1 {[%clk 0:04:04.6]} 17... Bxc3 {[%clk 0:04:02.9]} 18.
Bb2 {[%clk 0:03:56.8]} 18... Bxe1 {[%clk 0:03:58.6]} 19. Qxe1 {[%clk 0:03:48.1]}
19... e5 {[%clk 0:03:56]} 20. Nd2 {[%clk 0:03:31.9]} 20... Be6 {[%clk
0:03:53.2]} 21. b5 {[%clk 0:03:23]} 21... Qa5 {[%clk 0:03:27.2]} 22. Qe3 {[%clk
0:02:54.6]} 22... Rac8 {[%clk 0:03:24.7]} 23. bxa6 {[%clk 0:02:49.1]} 23... bxa6
{[%clk 0:03:19]} 24. f4 {[%clk 0:02:30.8]} 24... Rc5 {[%clk 0:03:05.9]} 25. fxe5
{[%clk 0:02:25.3]} 25... dxe5 {[%clk 0:03:00.9]} 26. Nb3 {[%clk 0:02:05.3]}
26... Bxb3 {[%clk 0:02:51.5]} 0-1

[Event "Live Chess"]
[Site "Chess.com"]
[Date "2023.05.21"]
[Round "-"]
[White "luckywookie"]
[Black "Ferrarifan27"]
[Result "0-1"]
[WhiteElo "783"]
[BlackElo "2071"]
[TimeControl "300"]
[EndTime "5:21:02 PDT"]
[Termination "Ferrarifan27 won by checkmate"]

1. e4 {[%clk 0:04:56.4]} 1... e5 {[%clk 0:04:58.6]} 2. c3 {[%clk 0:04:53.8]}
2... Nf6 {[%clk 0:04:54.7]} 3. d4 {[%clk 0:04:48]} 3... Nxe4 {[%clk 0:04:48]} 4.
dxe5 {[%clk 0:04:46.2]} 4... Qe7 {[%clk 0:04:46.3]} 5. Nf3 {[%clk 0:04:43]} 5...
d6 {[%clk 0:04:44.3]} 6. Nbd2 {[%clk 0:04:40.7]} 6... Nxd2 {[%clk 0:04:42.4]} 7.
Bxd2 {[%clk 0:04:33.9]} 7... dxe5 {[%clk 0:04:41]} 8. Bg5 {[%clk 0:04:23.2]}
8... f6 {[%clk 0:04:38.8]} 9. Be3 {[%clk 0:04:17.4]} 9... Nc6 {[%clk 0:04:37.6]}
10. Bb5 {[%clk 0:04:14.6]} 10... Bd7 {[%clk 0:04:36]} 11. Qb3 {[%clk 0:03:56.8]}
11... a6 {[%clk 0:04:32.3]} 12. Bc4 {[%clk 0:03:53.2]} 12... Na5 {[%clk
0:04:28.6]} 13. Qb4 {[%clk 0:03:39.2]} 13... Qxb4 {[%clk 0:04:25.3]} 14. cxb4
{[%clk 0:03:38.1]} 14... Bxb4+ {[%clk 0:04:23.7]} 15. Ke2 {[%clk 0:03:28.6]}
15... Nxc4 {[%clk 0:04:21.4]} 16. b3 {[%clk 0:03:09.2]} 16... Nxe3 {[%clk
0:04:19.9]} 17. fxe3 {[%clk 0:03:07.6]} 17... Bb5+ {[%clk 0:04:18.4]} 18. Kf2
{[%clk 0:03:03.4]} 18... O-O-O {[%clk 0:04:17.1]} 19. a3 {[%clk 0:02:52.3]}
19... Bc3 {[%clk 0:04:14.7]} 20. Rac1 {[%clk 0:02:49]} 20... Bb2 {[%clk
0:04:13.5]} 21. Rc2 {[%clk 0:02:45.9]} 21... Bxa3 {[%clk 0:04:12.1]} 22. Rhc1
{[%clk 0:02:40.3]} 22... Bc6 {[%clk 0:04:08]} 23. Rc4 {[%clk 0:02:33.6]} 23...
Bxc1 {[%clk 0:04:06.4]} 24. Rxc1 {[%clk 0:02:31.5]} 24... Bxf3 {[%clk
0:03:59.5]} 25. gxf3 {[%clk 0:02:28.6]} 25... Rd2+ {[%clk 0:03:59]} 26. Kg3
{[%clk 0:02:24.2]} 26... Rd3 {[%clk 0:03:57.9]} 27. e4 {[%clk 0:02:18.2]} 27...
Rxb3 {[%clk 0:03:55.7]} 28. Rd1 {[%clk 0:02:15.5]} 28... Rd8 {[%clk 0:03:50.6]}
29. Rd5 {[%clk 0:02:14.2]} 29... Rxd5 {[%clk 0:03:49.2]} 30. exd5 {[%clk
0:02:13.4]} 30... a5 {[%clk 0:03:48.4]} 31. Kg4 {[%clk 0:02:10.1]} 31... a4
{[%clk 0:03:47.5]} 32. f4 {[%clk 0:01:58.7]} 32... exf4 {[%clk 0:03:43.9]} 33.
Kxf4 {[%clk 0:01:57.7]} 33... a3 {[%clk 0:03:42.4]} 34. Kf5 {[%clk 0:01:56.7]}
34... a2 {[%clk 0:03:40.7]} 35. Ke6 {[%clk 0:01:55.9]} 35... a1=Q {[%clk
0:03:38.6]} 36. Kf7 {[%clk 0:01:54.1]} 36... f5 {[%clk 0:03:36.6]} 37. d6 {[%clk
0:01:51.5]} 37... Qf6+ {[%clk 0:03:34.1]} 38. Ke8 {[%clk 0:01:48.6]} 38... Re3#
{[%clk 0:03:32.7]} 0-1

[Event "Live Chess"]
[Site "Chess.com"]
[Date "2023.05.21"]
[Round "-"]
[White "EdenHazard8"]
[Black "TheSmoulderingMaster"]
[Result "1-0"]
[WhiteElo "1948"]
[BlackElo "1628"]
[TimeControl "300"]
[EndTime "5:21:09 PDT"]
[Termination "EdenHazard8 won by resignation"]

1. e4 {[%clk 0:04:59.3]} 1... c5 {[%clk 0:04:58.6]} 2. Nc3 {[%clk 0:04:58.2]}
2... Nc6 {[%clk 0:04:53.5]} 3. f4 {[%clk 0:04:58.1]} 3... e6 {[%clk 0:04:52.6]}
4. Nf3 {[%clk 0:04:58]} 4... Nf6 {[%clk 0:04:51.1]} 5. Bb5 {[%clk 0:04:57.4]}
5... Qc7 {[%clk 0:04:48.3]} 6. d3 {[%clk 0:04:55.8]} 6... a6 {[%clk 0:04:46]} 7.
Bxc6 {[%clk 0:04:55]} 7... Qxc6 {[%clk 0:04:44.4]} 8. O-O {[%clk 0:04:54.9]}
8... Be7 {[%clk 0:04:42]} 9. Qe1 {[%clk 0:04:54.1]} 9... O-O {[%clk 0:04:41.1]}
10. Qg3 {[%clk 0:04:53.2]} 10... d5 {[%clk 0:04:37.3]} 11. f5 {[%clk 0:04:52.3]}
11... Bd6 {[%clk 0:04:32.5]} 12. e5 {[%clk 0:04:50.8]} 12... Bc7 {[%clk
0:04:31.6]} 13. Bh6 {[%clk 0:04:47.2]} 13... Nh5 {[%clk 0:04:29.6]} 14. Qg4
{[%clk 0:04:46.1]} 14... exf5 {[%clk 0:04:16.7]} 15. Qxh5 {[%clk 0:04:44.9]}
15... Qxh6 {[%clk 0:04:15]} 16. Qxh6 {[%clk 0:04:44.1]} 16... gxh6 {[%clk
0:04:14.5]} 17. Nxd5 {[%clk 0:04:43.9]} 17... Bd8 {[%clk 0:04:07.3]} 18. Nf6+
{[%clk 0:04:34.5]} 18... Bxf6 {[%clk 0:04:04.4]} 19. exf6 {[%clk 0:04:34.4]}
19... b5 {[%clk 0:04:01.8]} 20. Nh4 {[%clk 0:04:31.8]} 20... Re8 {[%clk
0:03:57.9]} 21. Nxf5 {[%clk 0:04:25.3]} 21... Bxf5 {[%clk 0:03:56]} 22. Rxf5
{[%clk 0:04:25.2]} 22... Re2 {[%clk 0:03:53.9]} 23. Rf2 {[%clk 0:04:23.6]} 23...
Rae8 {[%clk 0:03:51.3]} 24. Raf1 {[%clk 0:04:22]} 24... R8e6 {[%clk 0:03:49.6]}
25. h3 {[%clk 0:04:16.2]} 25... Kf8 {[%clk 0:03:47.7]} 26. Rxe2 {[%clk
0:04:14.6]} 26... Rxe2 {[%clk 0:03:45.8]} 27. Rf2 {[%clk 0:04:14.2]} 27... Re1+
{[%clk 0:03:41.8]} 28. Kh2 {[%clk 0:04:13.2]} 28... Ra1 {[%clk 0:03:40.9]} 29.
a3 {[%clk 0:04:11.7]} 29... Rb1 {[%clk 0:03:38.3]} 30. Rf5 {[%clk 0:04:07.9]}
30... Rxb2 {[%clk 0:03:35.8]} 31. Rxc5 {[%clk 0:04:06.8]} 31... Ke8 {[%clk
0:03:33.8]} 32. Rc6 {[%clk 0:04:06]} 32... a5 {[%clk 0:03:31.1]} 33. c4 {[%clk
0:03:58.7]} 33... b4 {[%clk 0:03:29.2]} 34. axb4 {[%clk 0:03:57.2]} 34... axb4
{[%clk 0:03:27]} 35. Rb6 {[%clk 0:03:56.2]} 35... b3 {[%clk 0:03:26.2]} 36. c5
{[%clk 0:03:55.4]} 36... Rb1 {[%clk 0:03:23.7]} 37. c6 {[%clk 0:03:54.4]} 37...
Kd8 {[%clk 0:03:22.4]} 38. d4 {[%clk 0:03:52.1]} 38... Kc7 {[%clk 0:03:21.1]}
39. Rb7+ {[%clk 0:03:50]} 39... Kxc6 {[%clk 0:03:19.6]} 40. Rb4 {[%clk
0:03:45.2]} 40... b2 {[%clk 0:03:18.6]} 41. Kg3 {[%clk 0:03:42.5]} 41... Kd6
{[%clk 0:03:15.2]} 42. Kh4 {[%clk 0:03:39.9]} 42... Ke6 {[%clk 0:03:14.3]} 43.
Rb6+ {[%clk 0:03:38.6]} 43... Kf5 {[%clk 0:03:13]} 44. Kh5 {[%clk 0:03:37.6]}
44... Ke4 {[%clk 0:03:07.6]} 45. Kxh6 {[%clk 0:03:33.8]} 45... Kxd4 {[%clk
0:03:06.6]} 46. Kxh7 {[%clk 0:03:32.9]} 46... Kc5 {[%clk 0:03:03.2]} 47. Rb8
{[%clk 0:03:31.5]} 47... Kd6 {[%clk 0:03:01.3]} 48. Kg7 {[%clk 0:03:30.5]} 48...
Ke6 {[%clk 0:03:00.5]} 49. Rb6+ {[%clk 0:03:29.2]} 49... Kf5 {[%clk 0:02:56]}
50. Kxf7 {[%clk 0:03:28.4]} 50... Ke5 {[%clk 0:02:50.1]} 51. Kg7 {[%clk
0:03:27.1]} 51... Rg1 {[%clk 0:02:43.1]} 52. Rxb2 {[%clk 0:03:23.5]} 1-0

[Event "Live Chess"]
[Site "Chess.com"]
[Date "2023.05.21"]
[Round "-"]
[White "gmnorfolk"]
[Black "grillage"]
[Result "1-0"]
[WhiteElo "2123"]
[BlackElo "1814"]
[TimeControl "300"]
[EndTime "5:21:23 PDT"]
[Termination "gmnorfolk won by resignation"]

1. d4 {[%clk 0:04:58.5]} 1... Nf6 {[%clk 0:04:56.7]} 2. c4 {[%clk 0:04:57.2]}
2... e6 {[%clk 0:04:52]} 3. Nc3 {[%clk 0:04:56.5]} 3... Bb4 {[%clk 0:04:49.9]}
4. e3 {[%clk 0:04:54.5]} 4... O-O {[%clk 0:04:46.4]} 5. Bd3 {[%clk 0:04:53.9]}
5... Re8 {[%clk 0:04:38.3]} 6. Nf3 {[%clk 0:04:51.8]} 6... c5 {[%clk 0:04:31.2]}
7. O-O {[%clk 0:04:49.7]} 7... Bxc3 {[%clk 0:04:29.9]} 8. bxc3 {[%clk 0:04:49]}
8... d6 {[%clk 0:04:27.9]} 9. e4 {[%clk 0:04:42]} 9... e5 {[%clk 0:04:26]} 10.
Bg5 {[%clk 0:04:40.1]} 10... Nbd7 {[%clk 0:04:05.8]} 11. Re1 {[%clk 0:04:35.2]}
11... Qc7 {[%clk 0:04:04]} 12. Nh4 {[%clk 0:04:32.4]} 12... h6 {[%clk
0:04:01.3]} 13. Bd2 {[%clk 0:04:24.9]} 13... Nf8 {[%clk 0:03:59.3]} 14. h3
{[%clk 0:04:16.7]} 14... Qe7 {[%clk 0:03:54]} 15. Nf5 {[%clk 0:04:09.9]} 15...
Bxf5 {[%clk 0:03:52]} 16. exf5 {[%clk 0:04:09.8]} 16... Qc7 {[%clk 0:03:43.9]}
17. d5 {[%clk 0:04:04.1]} 17... e4 {[%clk 0:03:37.3]} 18. Bc2 {[%clk 0:04:02.7]}
18... Qd7 {[%clk 0:03:19.8]} 19. g4 {[%clk 0:04:00.4]} 19... N8h7 {[%clk
0:03:16.3]} 20. h4 {[%clk 0:03:55]} 20... b5 {[%clk 0:02:29.5]} 21. g5 {[%clk
0:03:50.2]} 21... e3 {[%clk 0:02:18.9]} 22. Bxe3 {[%clk 0:03:44]} 22... hxg5
{[%clk 0:02:12]} 23. hxg5 {[%clk 0:03:42.4]} 23... Ne4 {[%clk 0:02:09.2]} 24.
Qf3 {[%clk 0:03:33.4]} 24... Nexg5 {[%clk 0:01:56.6]} 25. Qg4 {[%clk 0:03:26]}
25... f6 {[%clk 0:01:46.6]} 26. Kg2 {[%clk 0:03:25.1]} 26... bxc4 {[%clk
0:01:32.4]} 27. Rh1 {[%clk 0:03:23.7]} 27... Kf7 {[%clk 0:01:23.4]} 28. Rae1
{[%clk 0:03:14.4]} 28... Rh8 {[%clk 0:01:20]} 29. f4 {[%clk 0:03:10.4]} 29...
Rab8 {[%clk 0:01:07.6]} 30. fxg5 {[%clk 0:03:07.3]} 30... Nxg5 {[%clk
0:01:06.6]} 31. Rxh8 {[%clk 0:02:59.2]} 31... Rxh8 {[%clk 0:01:03.6]} 32. Bxg5
{[%clk 0:02:58]} 32... fxg5 {[%clk 0:01:02.8]} 33. Qxg5 {[%clk 0:02:54.9]} 33...
Rh6 {[%clk 0:00:52.9]} 34. Re6 {[%clk 0:02:51]} 1-0

[Event "Live Chess"]
[Site "Chess.com"]
[Date "2023.05.21"]
[Round "-"]
[White "Brooms1989"]
[Black "GMHarry-youtube"]
[Result "0-1"]
[WhiteElo "1160"]
[BlackElo "2038"]
[TimeControl "300"]
[EndTime "5:21:26 PDT"]
[Termination "GMHarry-youtube won by checkmate"]

1. e4 {[%clk 0:04:57.1]} 1... c5 {[%clk 0:04:59.2]} 2. Nc3 {[%clk 0:04:55.8]}
2... d6 {[%clk 0:04:57.8]} 3. f4 {[%clk 0:04:54.7]} 3... Nf6 {[%clk 0:04:56.6]}
4. Nf3 {[%clk 0:04:53.7]} 4... g6 {[%clk 0:04:55.5]} 5. Bb5+ {[%clk 0:04:51.4]}
5... Bd7 {[%clk 0:04:54.1]} 6. Bxd7+ {[%clk 0:04:50.5]} 6... Qxd7 {[%clk
0:04:54]} 7. O-O {[%clk 0:04:49.6]} 7... Bg7 {[%clk 0:04:52.2]} 8. e5 {[%clk
0:04:41.3]} 8... dxe5 {[%clk 0:04:43.3]} 9. fxe5 {[%clk 0:04:41.2]} 9... Ng4
{[%clk 0:04:42.6]} 10. Qe2 {[%clk 0:04:32]} 10... Nc6 {[%clk 0:04:39.5]} 11. h3
{[%clk 0:04:27.1]} 11... Ngxe5 {[%clk 0:04:37.4]} 12. Nxe5 {[%clk 0:04:26.1]}
12... Bxe5 {[%clk 0:04:36]} 13. Qf3 {[%clk 0:04:21.9]} 13... O-O {[%clk
0:04:31.6]} 14. d3 {[%clk 0:04:18.9]} 14... Bc7 {[%clk 0:04:27.3]} 15. Bh6
{[%clk 0:04:16.4]} 15... Qd6 {[%clk 0:04:21.9]} 16. Bxf8 {[%clk 0:03:55.7]}
16... Rxf8 {[%clk 0:04:09.4]} 17. Ne4 {[%clk 0:03:33.3]} 17... Qh2+ {[%clk
0:04:02.5]} 18. Kf2 {[%clk 0:03:31.9]} 18... Nd4 {[%clk 0:04:00.6]} 19. Qg4
{[%clk 0:02:58.5]} 19... f5 {[%clk 0:03:55]} 20. Qh4 {[%clk 0:02:43.6]} 20...
fxe4+ {[%clk 0:03:50.8]} 21. Ke3 {[%clk 0:02:41.8]} 21... Nxc2+ {[%clk
0:03:37.5]} 22. Kxe4 {[%clk 0:02:37.3]} 22... Qxg2+ {[%clk 0:03:35.5]} 23. Rf3
{[%clk 0:02:31.9]} 23... Qxf3# {[%clk 0:03:35.1]} 0-1

[Event "Live Chess"]
[Site "Chess.com"]
[Date "2023.05.21"]
[Round "-"]
[White "Crowded_House"]
[Black "1600x"]
[Result "0-1"]
[WhiteElo "1605"]
[BlackElo "1873"]
[TimeControl "300"]
[EndTime "5:21:28 PDT"]
[Termination "1600x won by resignation"]

1. d4 {[%clk 0:04:59.2]} 1... e5 {[%clk 0:04:59.1]} 2. dxe5 {[%clk 0:04:56.5]}
2... Nc6 {[%clk 0:04:52.8]} 3. Nf3 {[%clk 0:04:56.2]} 3... d6 {[%clk 0:04:49.4]}
4. exd6 {[%clk 0:04:53.4]} 4... Bxd6 {[%clk 0:04:47.8]} 5. Bg5 {[%clk 0:04:51]}
5... Nf6 {[%clk 0:04:45.9]} 6. e3 {[%clk 0:04:44.9]} 6... h6 {[%clk 0:04:44.1]}
7. Bh4 {[%clk 0:04:43.3]} 7... O-O {[%clk 0:04:42]} 8. Bd3 {[%clk 0:04:41.3]}
8... Bg4 {[%clk 0:04:40]} 9. Nbd2 {[%clk 0:04:33]} 9... Re8 {[%clk 0:04:38]} 10.
h3 {[%clk 0:04:30.5]} 10... Be6 {[%clk 0:04:36]} 11. O-O {[%clk 0:04:28.3]}
11... Nb4 {[%clk 0:04:33.6]} 12. Bc4 {[%clk 0:04:17.1]} 12... g5 {[%clk
0:04:25.1]} 13. Bxe6 {[%clk 0:04:08.3]} 13... Rxe6 {[%clk 0:04:23.4]} 14. Bg3
{[%clk 0:03:46.6]} 14... Bxg3 {[%clk 0:04:21.5]} 15. fxg3 {[%clk 0:03:45.9]}
15... Nbd5 {[%clk 0:04:20.1]} 16. Re1 {[%clk 0:03:30.2]} 16... Nf4 {[%clk
0:04:08.7]} 17. exf4 {[%clk 0:03:24.5]} 17... Rxe1+ {[%clk 0:04:01.8]} 18. Qxe1
{[%clk 0:03:15.8]} 18... g4 {[%clk 0:03:59.9]} 19. hxg4 {[%clk 0:03:12.2]} 19...
Nxg4 {[%clk 0:03:58.3]} 20. Nh2 {[%clk 0:03:06.5]} 20... Qd4+ {[%clk 0:03:56.5]}
21. Kh1 {[%clk 0:02:48.4]} 21... Nf2+ {[%clk 0:03:54]} 22. Kg1 {[%clk 0:02:45]}
22... Nd3+ {[%clk 0:03:52.5]} 23. Kf1 {[%clk 0:02:44]} 23... Nxe1 {[%clk
0:03:51.5]} 0-1

[Event "Live Chess"]
[Site "Chess.com"]
[Date "2023.05.21"]
[Round "-"]
[White "KeithArkell"]
[Black "JackRudd"]
[Result "0-1"]
[WhiteElo "2479"]
[BlackElo "2479"]
[TimeControl "300"]
[EndTime "5:21:33 PDT"]
[Termination "JackRudd won by resignation"]

1. d4 {[%clk 0:04:57.2]} 1... Nf6 {[%clk 0:04:58.4]} 2. Nf3 {[%clk 0:04:56.5]}
2... g6 {[%clk 0:04:57.4]} 3. c4 {[%clk 0:04:55.8]} 3... Bg7 {[%clk 0:04:56.4]}
4. Nc3 {[%clk 0:04:55.1]} 4... O-O {[%clk 0:04:55.4]} 5. g3 {[%clk 0:04:54.7]}
5... d6 {[%clk 0:04:52.8]} 6. Bg2 {[%clk 0:04:53.4]} 6... Nc6 {[%clk 0:04:52]}
7. O-O {[%clk 0:04:51.8]} 7... a6 {[%clk 0:04:50.7]} 8. b3 {[%clk 0:04:43.2]}
8... Rb8 {[%clk 0:04:46.6]} 9. Nd5 {[%clk 0:04:42.1]} 9... Nd7 {[%clk
0:04:43.4]} 10. Bb2 {[%clk 0:04:40.5]} 10... b5 {[%clk 0:04:41.8]} 11. Rc1
{[%clk 0:04:34]} 11... bxc4 {[%clk 0:04:37.3]} 12. Rxc4 {[%clk 0:04:32]} 12...
Bb7 {[%clk 0:04:36.1]} 13. Qc2 {[%clk 0:04:26.5]} 13... Na5 {[%clk 0:04:34.1]}
14. e4 {[%clk 0:04:05.2]} 14... Nxc4 {[%clk 0:04:31.4]} 15. bxc4 {[%clk
0:04:04.4]} 15... c5 {[%clk 0:04:20.6]} 16. Bc3 {[%clk 0:03:53.8]} 16... cxd4
{[%clk 0:04:16.4]} 17. Bxd4 {[%clk 0:03:52]} 17... Bxd4 {[%clk 0:04:13.6]} 18.
Nxd4 {[%clk 0:03:51]} 18... e6 {[%clk 0:04:12.9]} 19. Ne3 {[%clk 0:03:47.6]}
19... Qf6 {[%clk 0:04:09.5]} 20. Rd1 {[%clk 0:03:42.7]} 20... Rfc8 {[%clk
0:04:07.4]} 21. Ne2 {[%clk 0:03:39]} 21... Ne5 {[%clk 0:03:59.9]} 22. Rxd6
{[%clk 0:03:30.7]} 22... Nf3+ {[%clk 0:03:57]} 23. Kh1 {[%clk 0:03:29.2]} 23...
Qe5 {[%clk 0:03:47.2]} 24. Bxf3 {[%clk 0:03:14.2]} 24... Qxd6 {[%clk 0:03:45.2]}
25. Ng4 {[%clk 0:03:08.7]} 25... h5 {[%clk 0:03:37.6]} 26. Nf6+ {[%clk
0:02:50.7]} 26... Kg7 {[%clk 0:03:36.1]} 27. Qc3 {[%clk 0:02:46.2]} 27... e5
{[%clk 0:03:34.7]} 28. Nd5 {[%clk 0:02:43.7]} 28... Bxd5 {[%clk 0:03:32.3]} 29.
exd5 {[%clk 0:02:43.3]} 29... Rb4 {[%clk 0:03:28.3]} 30. Kg2 {[%clk 0:02:32.1]}
30... Rcxc4 {[%clk 0:03:26.2]} 31. Qa3 {[%clk 0:02:27.9]} 31... e4 {[%clk
0:03:22.8]} 0-1

[Event "Live Chess"]
[Site "Chess.com"]
[Date "2023.05.21"]
[Round "-"]
[White "daveeeeR"]
[Black "LL220284LL"]
[Result "0-1"]
[WhiteElo "1295"]
[BlackElo "2299"]
[TimeControl "300"]
[EndTime "5:21:36 PDT"]
[Termination "LL220284LL won by resignation"]

1. d4 {[%clk 0:04:58]} 1... d5 {[%clk 0:04:59.9]} 2. Bf4 {[%clk 0:04:56.4]} 2...
c5 {[%clk 0:04:58.6]} 3. Nf3 {[%clk 0:04:55.9]} 3... Nc6 {[%clk 0:04:58]} 4. c3
{[%clk 0:04:54.8]} 4... Qb6 {[%clk 0:04:56]} 5. Qc1 {[%clk 0:04:50.1]} 5... cxd4
{[%clk 0:04:55.1]} 6. Nxd4 {[%clk 0:04:48]} 6... Nxd4 {[%clk 0:04:53.2]} 7. cxd4
{[%clk 0:04:47.3]} 7... Qxd4 {[%clk 0:04:49.2]} 8. e3 {[%clk 0:04:44.9]} 8...
Qb6 {[%clk 0:04:48.4]} 9. Be2 {[%clk 0:04:38.6]} 9... Nf6 {[%clk 0:04:46.9]} 10.
O-O {[%clk 0:04:36.9]} 10... e6 {[%clk 0:04:45.4]} 11. Nc3 {[%clk 0:04:30.2]}
11... Be7 {[%clk 0:04:43.3]} 12. b3 {[%clk 0:04:19.4]} 12... O-O {[%clk
0:04:41.7]} 13. Qd2 {[%clk 0:04:16.6]} 13... Bd7 {[%clk 0:04:39.8]} 14. Rab1
{[%clk 0:04:10.2]} 14... Bb4 {[%clk 0:04:38.6]} 15. Be5 {[%clk 0:04:05.7]} 15...
Ne4 {[%clk 0:04:37.5]} 16. Qd3 {[%clk 0:04:01.4]} 16... Nxc3 {[%clk 0:04:34.9]}
17. Bxc3 {[%clk 0:03:59.9]} 17... Rac8 {[%clk 0:04:34.3]} 18. Rfc1 {[%clk
0:03:56.4]} 18... Bxc3 {[%clk 0:04:30.8]} 19. Rxc3 {[%clk 0:03:53.9]} 19... Rxc3
{[%clk 0:04:30.7]} 20. Qxc3 {[%clk 0:03:52.9]} 20... Rc8 {[%clk 0:04:30.6]} 21.
Qd3 {[%clk 0:03:46.2]} 21... Qa5 {[%clk 0:04:28.1]} 22. h3 {[%clk 0:03:44.1]}
22... Qxa2 {[%clk 0:04:25.2]} 23. Bd1 {[%clk 0:03:42.7]} 23... Bb5 {[%clk
0:04:22]} 24. Qxb5 {[%clk 0:03:27.1]} 24... Qxb1 {[%clk 0:04:20.6]} 25. Qd7
{[%clk 0:03:24.9]} 25... Qxd1+ {[%clk 0:04:18.9]} 26. Kh2 {[%clk 0:03:24.8]}
26... Qc1 {[%clk 0:04:18]} 27. Qxb7 {[%clk 0:03:22.7]} 27... Qc7+ {[%clk
0:04:17.5]} 28. Qxc7 {[%clk 0:03:15.3]} 28... Rxc7 {[%clk 0:04:17.4]} 0-1

[Event "Live Chess"]
[Site "Chess.com"]
[Date "2023.05.21"]
[Round "-"]
[White "zdanevych"]
[Black "chessfiction"]
[Result "0-1"]
[WhiteElo "1524"]
[BlackElo "2313"]
[TimeControl "300"]
[EndTime "5:21:39 PDT"]
[Termination "chessfiction won by resignation"]

1. d4 {[%clk 0:04:59]} 1... d5 {[%clk 0:04:58.6]} 2. c4 {[%clk 0:04:58.1]} 2...
e5 {[%clk 0:04:57.8]} 3. dxe5 {[%clk 0:04:57.1]} 3... d4 {[%clk 0:04:56.8]} 4.
Nf3 {[%clk 0:04:55.4]} 4... Nc6 {[%clk 0:04:56.2]} 5. e3 {[%clk 0:04:51.8]} 5...
Bg4 {[%clk 0:04:55.2]} 6. Be2 {[%clk 0:04:48.8]} 6... Bb4+ {[%clk 0:04:52.3]} 7.
Bd2 {[%clk 0:04:46.5]} 7... dxe3 {[%clk 0:04:52.2]} 8. Bxb4 {[%clk 0:04:36.6]}
8... exf2+ {[%clk 0:04:50.8]} 9. Kxf2 {[%clk 0:04:36]} 9... Nxb4 {[%clk
0:04:49.5]} 10. Qxd8+ {[%clk 0:04:32.4]} 10... Rxd8 {[%clk 0:04:49.4]} 11. Nc3
{[%clk 0:04:30.1]} 11... Ne7 {[%clk 0:04:47]} 12. h3 {[%clk 0:04:28.1]} 12...
Be6 {[%clk 0:04:45.4]} 13. a3 {[%clk 0:04:22.7]} 13... Nbc6 {[%clk 0:04:44.4]}
14. Nb5 {[%clk 0:04:13.6]} 14... Rd7 {[%clk 0:04:36.8]} 15. Rad1 {[%clk
0:04:11.1]} 15... a6 {[%clk 0:04:36]} 16. Rxd7 {[%clk 0:04:08.8]} 16... Kxd7
{[%clk 0:04:35.7]} 17. Rd1+ {[%clk 0:04:07.3]} 17... Kc8 {[%clk 0:04:34.8]} 18.
Nbd4 {[%clk 0:04:02.5]} 18... Nxd4 {[%clk 0:04:31.1]} 19. Nxd4 {[%clk
0:04:02.4]} 19... Ng6 {[%clk 0:04:28]} 20. Nxe6 {[%clk 0:03:58.9]} 20... fxe6
{[%clk 0:04:27.9]} 21. Bg4 {[%clk 0:03:56.4]} 21... Re8 {[%clk 0:04:22.7]} 22.
Re1 {[%clk 0:03:46.8]} 22... c6 {[%clk 0:04:15.3]} 23. Ke3 {[%clk 0:03:43.8]}
23... Nxe5 {[%clk 0:04:13.8]} 24. Kf4 {[%clk 0:03:41]} 24... Nd3+ {[%clk
0:04:12.5]} 0-1

[Event "Live Chess"]
[Site "Chess.com"]
[Date "2023.05.21"]
[Round "-"]
[White "mattihelenius2"]
[Black "WelshTiger"]
[Result "0-1"]
[WhiteElo "491"]
[BlackElo "2291"]
[TimeControl "300"]
[EndTime "5:21:39 PDT"]
[Termination "WelshTiger won by resignation"]

1. d4 {[%clk 0:04:56.5]} 1... c5 {[%clk 0:04:57.9]} 2. e4 {[%clk 0:04:52.6]}
2... cxd4 {[%clk 0:04:56.5]} 3. Nf3 {[%clk 0:04:47.8]} 3... Nc6 {[%clk
0:04:54.4]} 4. Bb5 {[%clk 0:04:41.4]} 4... Qa5+ {[%clk 0:04:50.2]} 5. Nc3 {[%clk
0:04:37.7]} 5... dxc3 {[%clk 0:04:47.8]} 6. Nd4 {[%clk 0:04:24.3]} 6... cxb2+
{[%clk 0:04:45.3]} 7. Ke2 {[%clk 0:04:04.9]} 7... bxa1=Q {[%clk 0:04:42]} 8. h4
{[%clk 0:03:56.4]} 8... Qxd4 {[%clk 0:04:40.2]} 9. g4 {[%clk 0:03:56.3]} 9...
Qxe4+ {[%clk 0:04:36.9]} 10. Kf1 {[%clk 0:03:47.8]} 10... Qxh1+ {[%clk
0:04:35.5]} 11. Ke2 {[%clk 0:03:42.4]} 11... Qxb5+ {[%clk 0:04:34.8]} 12. Qd3
{[%clk 0:03:40.6]} 12... Qxd3+ {[%clk 0:04:33.8]} 0-1